fUSD/lending_fUSD_20250608
["ID","MTS","AMOUNT","RATE_DAILY","PERIOD"]
[364956833,1749351035823,-480.0,0.00019835,2]
[364956834,1749351035846,-480.0,0.00019835,2]
[364956835,1749351035870,-480.0,0.00019835,2]
[364956836,1749351035894,-480.0,0.00019835,2]
[364956837,1749351035917,-480.0,0.00019835,2]
[364956838,1749351035941,-480.0,0.00019835,2]
[364956839,1749351035965,-480.0,0.00019835,2]
[364956840,1749351035989,-480.0,0.00019835,2]
[364956841,1749351036013,-480.0,0.00019835,2]
[364956842,1749351036036,-480.0,0.00019835,2]
[364956843,1749351036060,-480.0,0.00019835,2]
[364956844,1749351036084,-1349.14,0.00019835,2]
[364956845,1749351036108,-480.0,0.00019835,2]
[364956846,1749351036131,-480.0,0.00019835,2]
[364956847,1749351036153,-480.0,0.00019835,2]
[364956848,1749351036175,-624.42,0.00019835,2]
[364956849,1749351036197,-480.0,0.00019835,2]
[364956850,1749351036221,-480.0,0.00019835,2]
[364956851,1749351036244,-203.64371807,0.00019835,2]
[364956852,1749351036267,-480.0,0.00019835,2]
[364956853,1749351036289,-480.0,0.00019835,2]
[364956854,1749351036312,-480.0,0.00019835,2]
[364956855,1749351036335,-480.0,0.00019835,2]
[364956856,1749351036357,-480.0,0.00019835,2]
[364956857,1749351036380,-480.0,0.00019835,2]
[364956858,1749351036402,-480.0,0.00019835,2]
[364956859,1749351036427,-480.0,0.00019835,2]
[364956860,1749351036451,-480.0,0.00019835,2]
[364956861,1749351036476,-480.0,0.00019835,2]
[364956862,1749351036499,-423.44033335,0.00019835,2]
[364956863,1749351036524,-480.0,0.00019835,2]
[364956864,1749351036547,-489.57904811,0.00019835,2]
[364956865,1749351036615,-603.22736629,0.00019835,2]
[364956866,1749351036640,-480.0,0.00019835,2]
[364956867,1749351036664,-300.0,0.00019835,2]
[364956868,1749351036685,-252.98293714,0.00019835,2]
[364956869,1749351036709,-480.0,0.00019835,2]
[364956870,1749351036730,-480.0,0.00019835,2]
[364956871,1749351036751,-480.0,0.00019835,2]
[364956872,1749351036773,-480.0,0.00019835,2]
[364956873,1749351036795,-264.08454434,0.00019835,2]
[364956874,1749351036817,-480.0,0.00019835,2]
[364956875,1749351036840,-480.0,0.00019835,2]
[364956876,1749351036861,-551.76280189,0.00019835,2]
[364956877,1749351036881,-480.0,0.00019835,2]
[364956878,1749351036902,-480.0,0.00019835,2]
[364956879,1749351036924,-480.0,0.00019835,2]
[364956880,1749351036945,-480.0,0.00019835,2]
[364956881,1749351036966,-480.0,0.00019835,2]
[364956882,1749351036992,-480.0,0.00019835,2]
[364956883,1749351037014,-480.0,0.00019835,2]
[364956884,1749351037034,-480.0,0.00019835,2]
[364956885,1749351037056,-480.0,0.00019835,2]
[364956886,1749351037077,-480.0,0.00019835,2]
[364956887,1749351037099,-480.0,0.00019835,2]
[364956888,1749351037121,-480.0,0.00019835,2]
[364956889,1749351037142,-480.0,0.00019835,2]
[364956890,1749351037163,-480.0,0.00019835,2]
[364956891,1749351037184,-542.28316049,0.00019835,2]
[364956892,1749351037206,-480.0,0.00019835,2]
[364956893,1749351037232,-518.81366424,0.00019835,2]
[364956894,1749351037253,-480.0,0.00019835,2]
[364956895,1749351037275,-480.0,0.00019835,2]
[364956896,1749351037302,-480.0,0.00019835,2]
[364956897,1749351037324,-480.0,0.00019835,2]
[364956898,1749351037346,-480.0,0.00019835,2]
[364956899,1749351037368,-538.85127212,0.00019835,2]
[364956900,1749351037389,-480.0,0.00019835,2]
[364956901,1749351037412,-480.0,0.00019835,2]
[364956902,1749351037434,-480.0,0.00019835,2]
[364956903,1749351037456,-480.0,0.00019835,2]
[364956904,1749351037482,-480.0,0.00019835,2]
[364956905,1749351037504,-480.0,0.00019835,2]
[364956906,1749351037526,-480.0,0.00019835,2]
[364956907,1749351037547,-480.0,0.00019835,2]
[364956908,1749351037568,-480.0,0.00019835,2]
[364956909,1749351037592,-480.0,0.00019835,2]
[364956910,1749351037615,-329.03387024,0.00019835,2]
[364956911,1749351037636,-480.0,0.00019835,2]
[364956912,1749351037657,-480.0,0.00019835,2]
[364956913,1749351037679,-480.0,0.00019835,2]
[364956914,1749351037700,-480.0,0.00019835,2]
[364956915,1749351037722,-480.0,0.00019835,2]
[364956916,1749351037744,-480.0,0.00019835,2]
[364956917,1749351037765,-480.0,0.00019835,2]
[364956918,1749351037788,-480.0,0.00019835,2]
[364956919,1749351037809,-480.0,0.00019835,2]
[364956920,1749351037832,-480.0,0.00019835,2]
[364956921,1749351037855,-480.0,0.00019835,2]
[364956922,1749351037876,-1168.01,0.00019835,2]
[364956923,1749351037898,-480.0,0.00019835,2]
[364956924,1749351037920,-480.0,0.00019835,2]
[364956925,1749351037942,-480.0,0.00019835,2]
[364956926,1749351037963,-480.0,0.00019835,2]
[364956927,1749351037985,-480.0,0.00019835,2]
[364956928,1749351038007,-480.0,0.00019835,2]
[364956929,1749351038030,-480.0,0.00019835,2]
[364956930,1749351038051,-480.0,0.00019835,2]
[364956931,1749351038074,-480.0,0.00019835,2]
[364956932,1749351038098,-1075.14,0.00019835,2]
[364956933,1749351038123,-535.91469149,0.00019835,2]
[364956934,1749351038149,-480.0,0.00019835,2]
[364956935,1749351038172,-480.0,0.00019835,2]
[364956937,1749351038195,-594.2380784,0.00019835,2]
[364956940,1749351038219,-480.0,0.00019835,2]
[364956941,1749351038240,-849.84,0.00019835,2]
[364956942,1749351038261,-480.0,0.00019835,2]
[364956943,1749351038283,-480.0,0.00019835,2]
[364956944,1749351038306,-519.39,0.00019835,2]
[364956945,1749351038328,-480.0,0.00019835,2]
[364956946,1749351038350,-809.6,0.00019835,2]
[364956947,1749351038375,-3083.56,0.00019835,2]
[364956948,1749351038397,-6758.72,0.00019835,2]
[364956949,1749351038420,-705.97,0.00019835,2]
[364956950,1749351038443,-626.10846098,0.00019835,2]
[364956951,1749351038467,-480.0,0.00019835,2]
[364956952,1749351038490,-480.0,0.00019835,2]
[364956953,1749351038515,-480.0,0.00019835,2]
[364956954,1749351038538,-480.0,0.00019835,2]
[364956955,1749351038562,-480.0,0.00019835,2]
[364956956,1749351038587,-747.62,0.00019835,2]
[364956957,1749351038610,-480.0,0.00019835,2]
[364956958,1749351038634,-556.08436672,0.00019835,2]
[364956959,1749351038657,-480.0,0.00019835,2]
[364956960,1749351038680,-7559.853785,0.00019835,2]
[364956961,1749351038703,-480.0,0.00019835,2]
[364956962,1749351038726,-480.0,0.00019835,2]
[364956963,1749351038749,-480.0,0.00019835,2]
[364956964,1749351038772,-480.0,0.00019835,2]
[364956965,1749351038794,-730.1,0.00019835,2]
[364956966,1749351038819,-480.0,0.00019835,2]
[364956967,1749351038845,-1186.32,0.00019835,2]
[364956968,1749351038875,-344.999122,0.00019835,2]
[364956969,1749351038900,-344.999122,0.00019835,2]
[364956970,1749351038923,-1395.92,0.00019835,2]
[364956971,1749351038948,-690.3,0.00019835,2]
[364956972,1749351038970,-344.999122,0.00019835,2]
[364956973,1749351038993,-344.999122,0.00019835,2]
[364956974,1749351039015,-480.0,0.00019835,2]
[364956975,1749351039037,-288.91454183,0.00019835,2]
[364956976,1749351039059,-480.0,0.00019835,2]
[364956977,1749351039080,-480.0,0.00019835,2]
[364956978,1749351039101,-480.0,0.00019835,2]
[364956979,1749351039123,-460.0,0.00019835,2]
[364956980,1749351039152,-480.0,0.00019835,2]
[364956981,1749351039175,-1521.71,0.00019835,2]
[364956982,1749351039198,-2435.99,0.00019835,2]
[364956983,1749351039224,-480.0,0.00019835,2]
[364956984,1749351039245,-444.18212079,0.00019835,2]
[364956985,1749351039266,-7506.504717,0.00019835,2]
[364956986,1749351039288,-480.0,0.00019835,2]
[364956987,1749351039311,-839.1,0.00019835,2]
[364956988,1749351039331,-480.0,0.00019835,2]
[364956989,1749351039351,-280.44832736,0.00019835,2]
[364956990,1749351039372,-667.96,0.00019835,2]
[364956991,1749351039393,-480.0,0.00019835,2]
[364956992,1749351039417,-1000.0,0.00019835,2]
[364956993,1749351039440,-281.370618,0.00019835,2]
[364956994,1749351039463,-381.92337823,0.00019835,2]
[364956995,1749351039490,-480.0,0.00019835,2]
[364956996,1749351039517,-480.0,0.00019835,2]
[364956997,1749351039542,-480.0,0.00019835,2]
[364956998,1749351039567,-480.0,0.00019835,2]
[364956999,1749351039592,-480.0,0.00019835,2]
[364957000,1749351039621,-480.0,0.00019835,2]
[364957001,1749351039646,-480.0,0.00019835,2]
[364957002,1749351039669,-480.0,0.00019835,2]
[364957003,1749351039696,-480.0,0.00019835,2]
[364957004,1749351039721,-2966.12,0.00019835,2]
[364957005,1749351039744,-480.0,0.00019835,2]
[364957006,1749351039767,-599.52291418,0.00019835,2]
[364957007,1749351039789,-636.22,0.00019835,2]
[364957008,1749351039812,-480.0,0.00019835,2]
[364957009,1749351039836,-5096.33,0.00019835,2]
[364957010,1749351039861,-480.0,0.00019835,2]
[364957011,1749351039886,-480.0,0.00019835,2]
[364957012,1749351039912,-480.0,0.00019835,2]
[364957013,1749351039936,-480.0,0.00019835,2]
[364957014,1749351039962,-155.526823,0.00019835,2]
[364957015,1749351039989,-480.0,0.00019835,2]
[364957016,1749351040018,-480.0,0.00019835,2]
[364957017,1749351040041,-480.0,0.00019835,2]
[364957018,1749351040067,-480.0,0.00019835,2]
[364957019,1749351040091,-480.0,0.00019835,2]
[364957020,1749351040118,-480.0,0.00019835,2]
[364957021,1749351040145,-480.0,0.00019835,2]
[364957022,1749351040173,-480.0,0.00019835,2]
[364957023,1749351040197,-480.0,0.00019835,2]
[364957024,1749351040224,-974.73,0.00019835,2]
[364957025,1749351040247,-480.0,0.00019835,2]
[364957026,1749351040268,-480.0,0.00019835,2]
[364957027,1749351040293,-480.0,0.00019835,2]
[364957028,1749351040316,-581.61,0.00019835,2]
[364957029,1749351040338,-788.09,0.00019835,2]
[364957030,1749351040360,-81796.72,0.00019835,2]
[364957031,1749351040384,-480.0,0.00019835,2]
[364957032,1749351040409,-772.169187,0.00019835,2]
[364957033,1749351040433,-480.0,0.00019835,2]
[364957034,1749351040458,-480.0,0.00019835,2]
[364957035,1749351040485,-480.0,0.00019835,2]
[364957036,1749351040508,-508.11767594,0.00019835,2]
[364957037,1749351040532,-762.16,0.00019835,2]
[364957038,1749351040556,-480.98,0.00019835,2]
[364957039,1749351040581,-310.35887838,0.00019835,2]
[364957040,1749351040603,-544.59164145,0.00019835,2]
[364957041,1749351040627,-480.0,0.00019835,2]
[364957042,1749351040649,-530.83,0.00019835,2]
[364957043,1749351040672,-480.0,0.00019835,2]
[364957044,1749351040696,-998.96,0.00019835,2]
[364957045,1749351040718,-2513.75,0.00019835,2]
[364957046,1749351040747,-633.33,0.00019835,2]
[364957047,1749351040771,-437.56923266,0.00019835,2]
[364957048,1749351040795,-480.0,0.00019835,2]
[364957049,1749351040820,-480.0,0.00019835,2]
[364957050,1749351040844,-480.0,0.00019835,2]
[364957051,1749351040867,-480.0,0.00019835,2]
[364957052,1749351040890,-480.0,0.00019835,2]
[364957053,1749351040913,-764.25,0.00019835,2]
[364957054,1749351040937,-480.0,0.00019835,2]
[364957055,1749351040959,-480.0,0.00019835,2]
[364957056,1749351040983,-480.0,0.00019835,2]
[364957057,1749351041006,-480.0,0.00019835,2]
[364957058,1749351041032,-480.0,0.00019835,2]
[364957059,1749351041055,-480.0,0.00019835,2]
[364957060,1749351041080,-480.0,0.00019835,2]
[364957061,1749351041103,-480.0,0.00019835,2]
[364957063,1749351041129,-693.58,0.00019835,2]
[364957064,1749351041156,-480.0,0.00019835,2]
[364957065,1749351041182,-480.0,0.00019835,2]
[364957066,1749351041207,-500.34,0.00019835,2]
[364957067,1749351041237,-2796.59,0.00019835,2]
[364957068,1749351041263,-480.0,0.00019835,2]
[364957069,1749351041290,-656.298075,0.00019835,2]
[364957070,1749351041317,-480.0,0.00019835,2]
[364957071,1749351041342,-480.0,0.00019835,2]
[364957072,1749351041366,-480.0,0.00019835,2]
[364957073,1749351041390,-480.0,0.00019835,2]
[364957074,1749351041417,-480.0,0.00019835,2]
[364957075,1749351041444,-480.0,0.00019835,2]
[364957076,1749351041468,-480.0,0.00019835,2]
[364957077,1749351041495,-480.0,0.00019835,2]
[364957078,1749351041521,-534.9,0.00019835,2]
[364957079,1749351041546,-480.0,0.00019835,2]
[364957080,1749351041569,-868.71,0.00019835,2]
[364957081,1749351041594,-480.0,0.00019835,2]
[364957082,1749351041620,-480.0,0.00019835,2]
[364957083,1749351041644,-480.0,0.00019835,2]
[364957084,1749351041668,-500.0,0.0001984,2]
[364957085,1749351041690,-200.0,0.0001984,2]
[364957086,1749351041714,-5561.3474863,0.00019845,2]
[364957087,1749351041739,-150.0,0.00019858,2]
[364957088,1749351041767,-150.0,0.00019873,2]
[364957089,1749351041795,-150.0,0.00019876,2]
[364957090,1749351041820,-1000.0,0.0001988,2]
[364957091,1749351041846,-150.0,0.00019885,2]
[364957092,1749351041872,-150.0,0.00019887,2]
[364957093,1749351041898,-143117.09852662,0.0001989,2]
[364957094,1749351042933,-616.99,0.00019178,2]
[364957095,1749351042943,-480.0,0.00019178,2]
[364957096,1749351042953,-480.0,0.00019178,2]
[364957097,1749351042962,-480.0,0.00019178,2]
[364957098,1749351042972,-480.0,0.00019178,2]
[364957099,1749351042981,-480.0,0.00019178,2]
[364957100,1749351042991,-480.0,0.00019178,2]
[364957101,1749351043000,-480.0,0.00019178,2]
[364957102,1749351043011,-563.11,0.00019178,2]
[364957103,1749351043020,-480.0,0.00019178,2]
[364957104,1749351043029,-616.99,0.00019342,2]
[364957105,1749351043038,-480.0,0.00019342,2]
[364957106,1749351043048,-480.0,0.00019342,2]
[364957107,1749351043057,-480.0,0.00019342,2]
[364957108,1749351043066,-306.83,0.00019342,2]
[364957109,1749351043076,-480.0,0.00019342,2]
[364957110,1749351043085,-199.52,0.00019342,2]
[364957111,1749351043095,-616.99,0.00019506,2]
[364957112,1749351043105,-480.0,0.00019506,2]
[364957113,1749351043115,-480.0,0.00019506,2]
[364957114,1749351043125,-480.0,0.00019506,2]
[364957115,1749351043136,-480.0,0.00019671,2]
[364957116,1749351043147,-616.99,0.00019671,2]
[364957117,1749351043157,-480.0,0.00019671,2]
[364957118,1749351043166,-480.0,0.00019835,2]
[364957119,1749351043176,-616.99,0.00019835,2]
[364957120,1749351043186,-480.0,0.00019835,2]
[364957121,1749351043196,-43517.16598746,0.0001989,2]
[364957123,1749351043574,-400.60294531,0.00019178,2]
[364957124,1749351043585,-480.0,0.00019178,2]
[364957125,1749351043596,-480.0,0.00019178,2]
[364957126,1749351043607,-480.0,0.00019178,2]
[364957127,1749351043619,-480.0,0.00019178,2]
[364957128,1749351043628,-480.0,0.00019178,2]
[364957129,1749351043637,-480.0,0.00019178,2]
[364957130,1749351043647,-480.0,0.00019342,2]
[364957131,1749351043656,-480.0,0.00019342,2]
[364957132,1749351043665,-480.0,0.00019342,2]
[364957133,1749351043675,-532.98,0.00019342,2]
[364957134,1749351043686,-480.0,0.00019506,2]
[364957135,1749351043695,-236.91,0.00019506,2]
[364957136,1749351043705,-462.07,0.00019671,2]
[364957137,1749351043714,-26331.53906758,0.0001989,2]
[364957138,1749351043730,-492214.96538526,0.0001989,2]
[364957139,1749351043754,-1291.95,0.0001989,2]
[364957140,1749351044779,-58.54337251,0.0001989,2]
[364957153,1749351052118,-428.05097962,0.0001989,2]
[364957154,1749351053407,-480.0,0.00019178,2]
[364957155,1749351053417,-480.0,0.00019178,2]
[364957156,1749351053427,-327.18,0.00019342,2]
[364957157,1749351053437,-403.16,0.00019342,2]
[364957158,1749351053447,-20203.92224722,0.0001989,2]
[364957159,1749351060135,-241.60082454,0.0001989,2]
[364957160,1749351064660,-916.08799711,0.0001989,2]
[364957161,1749351065672,-260.43822865,0.00019178,2]
[364957162,1749351072513,-219.56177135,0.00019178,2]
[364957163,1749351072522,-480.0,0.00019178,2]
[364957164,1749351072532,-480.0,0.00019178,2]
[364957165,1749351072541,-282.36336084,0.00019178,2]
[364957166,1749351074911,-207.0,0.00018878,2]
[364957167,1749351074933,-197.63663916,0.00019178,2]
[364957168,1749351074956,-666.12,0.00019178,2]
[364957169,1749351074983,-480.0,0.00019178,2]
[364957170,1749351075004,-480.0,0.00019178,2]
[364957171,1749351075025,-622.93,0.00019178,2]
[364957172,1749351075046,-480.0,0.00019178,2]
[364957173,1749351075067,-480.0,0.00019178,2]
[364957174,1749351075086,-480.0,0.00019178,2]
[364957175,1749351075110,-2805.48,0.00019178,2]
[364957176,1749351075130,-480.0,0.00019178,2]
[364957177,1749351075150,-480.0,0.00019178,2]
[364957178,1749351075170,-480.0,0.00019178,2]
[364957179,1749351075196,-480.0,0.00019178,2]
[364957180,1749351075220,-460.0,0.00019178,2]
[364957181,1749351075243,-480.0,0.00019178,2]
[364957182,1749351075263,-480.0,0.00019178,2]
[364957183,1749351075282,-480.0,0.00019178,2]
[364957184,1749351075304,-480.0,0.00019178,2]
[364957185,1749351075326,-581.48,0.00019178,2]
[364957186,1749351075346,-480.0,0.00019178,2]
[364957187,1749351075370,-567.54,0.00019178,2]
[364957188,1749351075394,-480.0,0.00019178,2]
[364957189,1749351075416,-480.0,0.00019178,2]
[364957190,1749351075437,-480.0,0.00019178,2]
[364957191,1749351075462,-480.0,0.00019178,2]
[364957192,1749351075483,-480.0,0.00019178,2]
[364957193,1749351075504,-480.0,0.00019178,2]
[364957194,1749351075526,-484.43,0.00019178,2]
[364957195,1749351075547,-480.0,0.00019178,2]
[364957196,1749351075567,-480.0,0.00019178,2]
[364957197,1749351075588,-480.0,0.00019178,2]
[364957198,1749351075610,-480.0,0.00019178,2]
[364957199,1749351075632,-480.0,0.00019178,2]
[364957200,1749351075656,-480.0,0.00019178,2]
[364957201,1749351075680,-480.0,0.00019342,2]
[364957202,1749351075701,-546.16,0.00019342,2]
[364957203,1749351075723,-480.0,0.00019342,2]
[364957204,1749351075746,-666.12,0.00019342,2]
[364957205,1749351075769,-480.0,0.00019342,2]
[364957206,1749351075791,-480.0,0.00019342,2]
[364957207,1749351075812,-480.0,0.00019342,2]
[364957208,1749351075833,-286.151434,0.00019342,2]
[364957209,1749351075853,-480.0,0.00019342,2]
[364957210,1749351075876,-2805.48,0.00019342,2]
[364957211,1749351075898,-480.0,0.00019342,2]
[364957212,1749351075918,-480.0,0.00019342,2]
[364957213,1749351075939,-480.0,0.00019342,2]
[364957214,1749351075959,-480.0,0.00019342,2]
[364957215,1749351075979,-480.0,0.00019342,2]
[364957216,1749351075999,-480.0,0.00019342,2]
[364957217,1749351076019,-480.0,0.00019342,2]
[364957218,1749351076040,-581.48,0.00019342,2]
[364957219,1749351076060,-480.0,0.00019342,2]
[364957220,1749351076079,-567.54,0.00019342,2]
[364957221,1749351076099,-480.0,0.00019342,2]
[364957222,1749351076118,-480.0,0.00019342,2]
[364957223,1749351076138,-480.0,0.00019342,2]
[364957224,1749351076158,-480.0,0.00019342,2]
[364957225,1749351076178,-480.0,0.00019342,2]
[364957226,1749351076198,-480.0,0.00019342,2]
[364957227,1749351076218,-484.43,0.00019342,2]
[364957228,1749351076241,-480.0,0.00019342,2]
[364957229,1749351076261,-480.0,0.00019342,2]
[364957230,1749351076281,-480.0,0.00019342,2]
[364957231,1749351076317,-307.883044,0.00019342,2]
[364957232,1749351076338,-589.74,0.00019342,2]
[364957233,1749351076359,-480.0,0.00019506,2]
[364957234,1749351076382,-480.0,0.00019506,2]
[364957235,1749351076405,-666.12,0.00019506,2]
[364957236,1749351076428,-480.0,0.00019506,2]
[364957237,1749351076456,-480.0,0.00019506,2]
[364957238,1749351076477,-286.151434,0.00019506,2]
[364957239,1749351076501,-480.0,0.00019506,2]
[364957240,1749351076526,-2805.48,0.00019506,2]
[364957241,1749351076550,-480.0,0.00019506,2]
[364957242,1749351076573,-480.0,0.00019506,2]
[364957243,1749351076596,-480.0,0.00019506,2]
[364957244,1749351076618,-480.0,0.00019506,2]
[364957245,1749351076642,-174.83010423,0.00019506,2]
[364957246,1749351076664,-490.26,0.00019506,2]
[364957247,1749351076687,-581.48,0.00019506,2]
[364957248,1749351076710,-497.26,0.00019506,2]
[364957249,1749351076968,-567.54,0.00019506,2]
[364957250,1749351076990,-480.0,0.00019506,2]
[364957251,1749351077011,-480.0,0.00019506,2]
[364957252,1749351077032,-480.0,0.00019506,2]
[364957253,1749351077053,-554.31,0.00019506,2]
[364957254,1749351077074,-484.43,0.00019506,2]
[364957255,1749351077094,-480.0,0.00019506,2]
[364957256,1749351077115,-480.0,0.00019506,2]
[364957257,1749351077136,-390.53759976,0.00019506,2]
[364957258,1749351077157,-307.883044,0.00019506,2]
[364957259,1749351077179,-500.0,0.0001967,2]
[364957260,1749351077207,-500.0,0.0001967,2]
[364957261,1749351077234,-523.980821,0.0001967,2]
[364957262,1749351077254,-266.92942907,0.0001967,2]
[364957263,1749351077277,-480.0,0.00019671,2]
[364957264,1749351077300,-480.0,0.00019671,2]
[364957265,1749351077325,-666.12,0.00019671,2]
[364957266,1749351077347,-480.0,0.00019671,2]
[364957267,1749351077371,-283.91,0.00019671,2]
[364957268,1749351077394,-286.151434,0.00019671,2]
[364957269,1749351077418,-480.0,0.00019671,2]
[364957270,1749351077442,-2805.48,0.00019671,2]
[364957271,1749351077466,-480.0,0.00019671,2]
[364957272,1749351077486,-480.0,0.00019671,2]
[364957273,1749351077509,-581.48,0.00019671,2]
[364957274,1749351077532,-567.54,0.00019671,2]
[364957275,1749351077553,-480.0,0.00019671,2]
[364957276,1749351077574,-480.0,0.00019671,2]
[364957277,1749351077596,-484.43,0.00019671,2]
[364957278,1749351077617,-480.0,0.00019671,2]
[364957279,1749351077639,-480.0,0.00019671,2]
[364957280,1749351077663,-307.883044,0.00019671,2]
[364957281,1749351077684,-281.35,0.00019835,2]
[364957282,1749351077714,-480.0,0.00019835,2]
[364957283,1749351077737,-666.12,0.00019835,2]
[364957284,1749351077759,-480.0,0.00019835,2]
[364957285,1749351077783,-286.151434,0.00019835,2]
[364957286,1749351077810,-2805.48,0.00019835,2]
[364957287,1749351077834,-480.0,0.00019835,2]
[364957288,1749351077858,-581.48,0.00019835,2]
[364957289,1749351077880,-567.54,0.00019835,2]
[364957290,1749351077903,-480.0,0.00019835,2]
[364957291,1749351077925,-484.43,0.00019835,2]
[364957292,1749351077947,-480.0,0.00019835,2]
[364957293,1749351077969,-480.0,0.00019835,2]
[364957294,1749351077990,-307.883044,0.00019835,2]
[364957295,1749351078012,-500.0,0.00019873,2]
[364957296,1749351078033,-507.44936854,0.00019873,2]
[364957297,1749351078055,-331017.31406547,0.0001989,2]
[364957298,1749351078077,-163.89432345,0.000199,2]
[364957299,1749351078099,-2387.93272801,0.000199,2]
[364957300,1749351078121,-151.37467174,0.000199,2]
[364957301,1749351078144,-5561.3474863,0.000199,2]
[364957302,1749351078166,-600.0,0.000199,7]
[364957303,1749351078188,-339.173625,0.000199,2]
[364957304,1749351078210,-234.2337816,0.00019906,2]
[364957305,1749351078248,-1164.0,0.00019908,2]
[364957306,1749351078274,-150.0,0.00019914,2]
[364957307,1749351078298,-150.0,0.00019916,2]
[364957308,1749351078323,-1000.0,0.00019919,2]
[364957309,1749351078346,-1000.0,0.00019921,2]
[364957310,1749351078370,-150.0,0.00019921,2]
[364957311,1749351078394,-150.0,0.00019937,2]
[364957312,1749351078418,-1000.0,0.00019942,2]
[364957313,1749351078441,-150.0,0.00019954,2]
[364957314,1749351078466,-152.0,0.00019957,4]
[364957315,1749351078489,-156.804,0.00019957,2]
[364957316,1749351078514,-150.0,0.00019957,2]
[364957317,1749351078546,-150.0,0.00019964,2]
[364957318,1749351078568,-500.81944365,0.00019973,2]
[364957319,1749351078591,-500.0,0.00019973,2]
[364957320,1749351078615,-500.6919761,0.00019973,2]
[364957321,1749351078640,-150.0,0.00019975,2]
[364957322,1749351078663,-150.0,0.00019975,2]
[364957323,1749351078686,-150.0,0.00019978,2]
[364957324,1749351078710,-3584.24525758,0.0001998,2]
[364957325,1749351078732,-1472.01981742,0.00019988,2]
[364957326,1749351078755,-150.0,0.0001999,2]
[364957327,1749351078784,-8088.077204,0.00019993,2]
[364957328,1749351078808,-773.343,0.00019995,7]
[364957329,1749351078833,-150.0,0.00019996,2]
[364957330,1749351078855,-500.0,0.00019998,2]
[364957331,1749351078876,-1573.76,0.00019998,2]
[364957332,1749351078900,-500.0,0.00019998,2]
[364957333,1749351078924,-500.0,0.00019998,2]
[364957334,1749351078949,-308.23318075,0.00019999,2]
[364957335,1749351078976,-183.12860849,0.00019999,2]
[364957336,1749351079000,-286.32557805,0.00019999,2]
[364957337,1749351079022,-500.0,0.00019999,2]
[364957338,1749351079044,-500.0,0.00019999,2]
[364957339,1749351079068,-500.0,0.00019999,2]
[364957340,1749351079091,-500.0,0.00019999,2]
[364957341,1749351079114,-500.0,0.00019999,2]
[364957342,1749351079137,-500.0,0.00019999,2]
[364957343,1749351079160,-500.0,0.00019999,2]
[364957344,1749351079184,-500.0,0.00019999,2]
[364957345,1749351079209,-500.0,0.00019999,2]
[364957346,1749351079236,-500.0,0.00019999,2]
[364957347,1749351079259,-500.0,0.00019999,2]
[364957348,1749351079287,-304.28,0.00019999,2]
[364957349,1749351079311,-1573.76,0.00019999,2]